fUST/lending_fUST_20260107
["ID","MTS","AMOUNT","RATE_DAILY","PERIOD"]
[400557647,1767715848180,-1834.16,0.00034698,60]
[400557648,1767715848194,-1690.33,0.000347,30]
[400557649,1767715848204,-15617.11,0.000347,14]
[400557650,1767715848214,-151.42,0.00034768,60]
[400557651,1767715848223,-935.68,0.00034794,37]
[400557652,1767715848234,-1834.16,0.00034798,60]
[400557653,1767715848243,-2000.0,0.00034836,7]
[400557654,1767715848253,-151.42,0.00034868,60]
[400557655,1767715848264,-600.6566519,0.00034869,30]
[400557656,1767715848273,-600.6566519,0.00034869,30]
[400557657,1767715848282,-600.6566519,0.00034869,30]
[400557658,1767715848291,-600.6566519,0.00034869,30]
[400557659,1767715848300,-1834.16,0.00034898,60]
[400557660,1767715848310,-342.15229797,0.000349,120]
[400557661,1767715848320,-203.06425058,0.000349,120]
[400557662,1767715848330,-163.4725449,0.000349,120]
[400557663,1767715848340,-247.95804547,0.000349,120]
[400557664,1767715848350,-228.83240034,0.000349,120]
[400557665,1767715848360,-1488.54574986,0.000349,120]
[400557666,1767715848369,-151.42,0.00034968,60]
[400557667,1767715848379,-1834.16,0.00034998,60]
[400557668,1767715848388,-10761.00324623,0.00035,2]
[400557669,1767715848398,-1000.0,0.00035,2]
[400557670,1767715848407,-423.2035676,0.00035,15]
[400557671,1767715848417,-40000.0,0.00035,15]
[400557672,1767715848428,-22500.0,0.00035,3]
[400557673,1767715848437,-8000.0,0.00035,2]
[400557674,1767715848447,-431.71,0.00035,5]
[400557675,1767715848456,-185.37771349,0.00035,120]
[400557676,1767715848466,-1363.39786065,0.00035,120]
[400557677,1767715848475,-214.277153,0.00035,120]
[400557678,1767715848484,-660.50119086,0.00035,2]
[400557679,1767715848493,-194.46103846,0.00035,120]
[400557680,1767715848503,-200.0,0.00035,120]
[400557681,1767715848512,-1041.66666667,0.00035,3]
[400557682,1767715848522,-1041.66666667,0.00035,30]
[400557683,1767715848532,-500.0,0.00035,120]
[400557684,1767715848542,-151.0,0.00035,31]
[400557685,1767715848551,-174.0,0.00035014,74]
[400557686,1767715848560,-222.9660492,0.00035039,2]
[400557687,1767715848570,-151.42,0.00035068,60]
[400557688,1767715848579,-1834.16,0.00035098,60]
[400557689,1767715848589,-151.42,0.00035168,60]
[400557690,1767715848598,-1834.16,0.00035198,60]
[400557691,1767715848609,-1326.666,0.000352,60]
[400557692,1767715848619,-1326.666,0.000352,90]
[400557693,1767715848628,-1326.66,0.000352,90]
[400557694,1767715848637,-719.13,0.000352,2]
[400557695,1767715848647,-151.42,0.00035268,60]
[400557696,1767715848657,-1834.16,0.00035298,60]
[400557697,1767715848666,-1010.55,0.000353,21]
[400557698,1767715848676,-935.68,0.00035342,38]
[400557699,1767715848686,-330.0,0.00035342,5]
[400557700,1767715848695,-2543.10710411,0.00035348,37]
[400557701,1767715848704,-2145.0,0.00035351,2]
[400557702,1767715848713,-1071.284,0.00035351,2]
[400557703,1767715848722,-628.0,0.00035351,2]
[400557704,1767715848732,-151.42,0.00035368,60]
[400557705,1767715848741,-1834.16,0.00035398,60]
[400557706,1767715848750,-2000.0,0.0003541,7]
[400557707,1767715848760,-151.42,0.00035468,60]
[400557708,1767715848769,-1834.16,0.00035498,60]
[400557709,1767715848778,-719.13,0.000355,2]
[400557710,1767715848787,-1513.263,0.000355,120]
[400557711,1767715848797,-1513.26,0.000355,120]
[400557712,1767715848807,-151.42,0.00035568,60]
[400557713,1767715848816,-1834.16,0.00035598,60]
[400557714,1767715848826,-1825.86,0.00035616,120]
[400557715,1767715848836,-180.58134689,0.00035616,2]
[400557716,1767715848847,-4752.27294671,0.0003564,2]
[400557717,1767715848859,-151.42,0.00035668,60]
[400557718,1767715848869,-1834.16,0.00035698,60]
[400557719,1767715848879,-11053.10588479,0.00035766,2]
[400557720,1767715848967,-330.79864556,0.00035766,2]
[400557721,1767715848979,-27.85795895,0.00035766,2]
[400557722,1767715848989,-151.42,0.00035768,60]
[400557723,1767715848998,-1086.71243763,0.00035798,60]
[400557724,1767715849009,-747.44756237,0.00035798,60]
[400557725,1767715849018,-2096.19166667,0.00035838,2]
[400557726,1767715849028,-151.42,0.00035868,60]
[400557727,1767715849038,-935.68,0.0003589,39]
[400557728,1767715849047,-427.34140825,0.00035898,60]
[400557729,1767715849232,-3e-08,0.00019363,2]
[400557730,1767715849445,-416.99999997,0.00019363,2]
[400557731,1767715849455,-83.56841586,0.00022363,2]
[400557732,1767715849474,-333.43158414,0.00022363,2]
[400557733,1767715849484,-417.0,0.00025363,2]
[400557734,1767715849493,-417.0,0.00026302,2]
[400557735,1767715849502,-417.0,0.00026439,2]
[400557736,1767715849511,-417.0,0.00026576,2]
[400557737,1767715849520,-417.0,0.00026713,2]
[400557738,1767715849529,-417.0,0.0002685,2]
[400557739,1767715849538,-417.0,0.00026987,2]
[400557740,1767715849547,-417.0,0.00027124,2]
[400557741,1767715849557,-417.0,0.00027261,2]
[400557742,1767715849568,-417.0,0.00027398,2]
[400557743,1767715849577,-417.0,0.00027535,2]
[400557744,1767715849587,-417.0,0.00027672,2]
[400557745,1767715849596,-419.12863019,0.00027809,2]
[400557746,1767715849605,-417.0,0.00028363,2]
[400557747,1767715849616,-151.0,0.0003,7]
[400557748,1767715849625,-151.0,0.0003,7]
[400557749,1767715849634,-151.0,0.0003,7]
[400557750,1767715849643,-151.0,0.00030046,14]
[400557751,1767715849652,-151.0,0.00030053,14]
[400557752,1767715849663,-151.0,0.00030061,14]
[400557753,1767715849672,-151.0,0.00030069,14]
[400557754,1767715849682,-151.0,0.00030076,14]
[400557755,1767715849691,-604.0,0.00030137,30]
[400557756,1767715849701,-509.0,0.00030137,30]
[400557757,1767715849710,-409.676,0.00031363,2]
[400557758,1767715849720,-151.0,0.000332,31]
[400557759,1767715849730,-151.0,0.000332,31]
[400557760,1767715849739,-151.0,0.000332,31]
[400557761,1767715849749,-600.6566519,0.00034047,30]
[400557762,1767715849758,-1406.81859175,0.00035898,60]
[400557763,1767715849768,-2096.19166667,0.00035938,2]
[400557764,1767715849901,-125.4798915,0.00035968,60]
[400557765,1767715850037,217.69323789,0.00030137,120]
[400557766,1767715924517,159.83,8.248e-05,2]
[400557767,1767715924949,179.81,8.542e-05,2]
[400557768,1767715925375,180.10328365,8.837e-05,2]
[400557817,1767717032519,-398.52179493,0.00012769,2]
[400557818,1767717032529,-444.91474013,0.00012869,2]
[400557819,1767717032540,-315.91607654,0.00012869,2]
[400557820,1767717032554,-514.69717787,0.00012869,2]
[400557822,1767717032565,-424.98544263,0.00012869,2]
[400557824,1767717032575,-1249.50691396,0.00012869,2]
[400557826,1767717032586,-962.90483742,0.00012869,2]
[400557880,1767717038244,-413.87812066,0.00012869,2]
[400557882,1767717038254,-500.0,0.00013273,2]
[400557884,1767717038264,-359.79046964,0.00013363,2]
[400557886,1767717038276,-1235.18487266,0.00013363,2]
[400557888,1767717038286,-500.0,0.00013598,2]
[400557890,1767717038295,-430.82163325,0.00013598,2]
[400557892,1767717038305,-840.18067368,0.00013598,2]
[400557894,1767717038316,-389.38572688,0.00013598,2]
[400557896,1767717038326,-500.0,0.00013598,2]
[400557898,1767717038337,-840.18067368,0.00013598,2]
[400557900,1767717038347,-840.18067368,0.00013598,2]
[400557902,1767717038358,-500.0,0.00013598,2]
[400557904,1767717038368,-840.18067368,0.00013598,2]
[400557906,1767717038377,-565.94006469,0.00013598,2]
[400557908,1767717038390,-274.24060899,0.00013598,2]
[400557910,1767717038399,-500.0,0.00013598,2]
[400557912,1767717038409,-212.71655787,0.00013598,2]
[400557914,1767717038421,-627.46411581,0.00013598,2]
[400557916,1767717038431,-840.18067368,0.00013598,2]
[400557918,1767717038441,-840.18067368,0.00013598,2]
[400557920,1767717038451,-840.18067368,0.00013598,2]
[400557922,1767717038460,-840.18067368,0.00013598,2]
[400557924,1767717038470,-840.18067368,0.00013598,2]
[400557926,1767717038479,-840.18067368,0.00013598,2]
[400557928,1767717038488,-840.18067368,0.00013598,2]
[400557930,1767717038497,-840.18067368,0.00013598,2]
[400557932,1767717038506,-672902.53505442,0.00013599,2]
[400558009,1767717040408,-10958.28969146,0.00013599,2]
[400558016,1767717045215,-1719.34305006,0.00013599,2]
[400558027,1767717046341,-279.0,0.00013599,2]
[400558029,1767717046352,-87781.56492328,0.00013599,2]
[400558031,1767717046364,-1467.3117518,0.00013599,2]
[400558090,1767717352368,-200.0,0.00011189,20]
[400558091,1767717352392,-166.74711218,0.00011759,2]
[400558092,1767717352415,-397.43653537,0.00012329,2]
[400558093,1767717376967,182.22687107,0.00030137,120]
[400558094,1767717423958,155.83,8.237e-05,2]
[400558095,1767717464851,500.0,0.00024773,120]
[400558096,1767717465084,500.0,0.00024899,120]
[400558097,1767717465386,500.0,0.00024899,120]
[400558098,1767717547270,-350.24968427,0.00012329,2]
[400558099,1767717560914,158.31,7.697e-05,2]
[400558100,1767717561370,178.1,7.972e-05,2]
[400558101,1767717561845,168.4099459,8.247e-05,2]
[400558102,1767717607311,-59.73378036,0.00012329,2]
[400558103,1767717607339,-240.35310966,0.00012329,2]
[400558104,1767717609315,-306.01770426,0.00012329,2]
[400558105,1767717630349,168.62,7.729e-05,2]
[400558106,1767717630892,189.7,8.005e-05,2]
[400558107,1767717631325,210.78,8.281e-05,2]
[400558153,1767717922301,-47.62918608,0.00012329,2]
[400558154,1767717922321,-245.27090939,0.00012572,2]
[400558155,1767717925258,-435.57414143,0.00012572,2]
[400558156,1767717926757,-181.23,0.00012572,2]
[400558158,1767717971463,152.48,7.195e-05,2]
[400558169,1767717971893,177.89,7.472e-05,2]
[400558170,1767717972331,203.3,7.749e-05,2]
[400558171,1767717972794,228.71,8.025e-05,2]
[400558172,1767717973198,254.13,8.302e-05,2]
[400558242,1767718232227,-136.92494918,0.00012572,2]
[400558243,1767718232237,-210.95356756,0.00012609,2]
[400558244,1767718232246,-300.0,0.00013272,2]
[400558245,1767718232257,-300.0,0.00013272,2]
[400558246,1767718232267,-429.0,0.00013272,2]
[400558247,1767718232276,-500.0,0.00013273,2]
[400558248,1767718232286,-501.3085001,0.00013273,2]
[400558249,1767718232295,-502.20988126,0.00013273,2]
[400558250,1767718232304,-372.41289398,0.00013273,2]
[400558251,1767718232314,-500.0,0.00013273,2]
[400558252,1767718232324,-561.44282102,0.00013273,2]
[400558253,1767718232333,-500.0,0.00013273,2]
[400558254,1767718232342,-500.0,0.00013273,2]
[400558255,1767718232352,-500.0,0.00013273,2]
[400558256,1767718232361,-500.0,0.00013273,2]
[400558257,1767718232370,-2462.94558633,0.00013338,2]
[400558258,1767718232379,-21.80180057,0.00013469,2]
[400558275,1767718238426,-514.58211637,0.00013469,2]
[400558276,1767718238437,-1788.74046298,0.00013495,2]
[400558277,1767718238447,-988.56,0.00013495,2]
[400558279,1767718238457,-166.66666666,0.00013496,2]
[400558281,1767718238467,-500.0,0.00013497,2]
[400558283,1767718238476,-504.78963043,0.00013497,2]
[400558285,1767718238485,-415.2471144,0.00013497,2]
[400558287,1767718238495,-990.78291932,0.00013497,2]
[400558289,1767718238504,-990.78291932,0.00013497,2]
[400558290,1767718238513,-990.78291932,0.00013497,2]
[400558291,1767718238522,-990.78291932,0.00013497,2]
[400558293,1767718238532,-990.78291932,0.00013497,2]
[400558295,1767718238542,-500.0,0.00013497,2]
[400558296,1767718238551,-990.78291932,0.00013497,2]
[400558297,1767718238561,-990.78291932,0.00013497,2]
[400558298,1767718238570,-500.0,0.00013497,2]
[400558299,1767718238580,-990.78291932,0.00013497,2]
[400558300,1767718238590,-990.78291932,0.00013497,2]
[400558301,1767718238601,-990.78291932,0.00013497,2]
[400558302,1767718238611,-990.78291932,0.00013497,2]
[400558303,1767718238621,-990.78291932,0.00013497,2]
[400558304,1767718238631,-500.0,0.00013497,2]
[400558305,1767718238840,-990.78291932,0.00013497,2]
[400558306,1767718238850,-990.78291932,0.00013497,2]
[400558307,1767718238861,-990.78291932,0.00013497,2]
[400558308,1767718238870,-990.78291932,0.00013497,2]
[400558309,1767718238879,-990.78291932,0.00013497,2]
[400558310,1767718238890,-990.78291932,0.00013497,2]
[400558311,1767718238899,-990.78291932,0.00013497,2]
[400558312,1767718238911,-990.78291932,0.00013497,2]
[400558313,1767718238920,-990.78291932,0.00013497,2]
[400558314,1767718238930,-990.78291932,0.00013497,2]
[400558315,1767718238939,-990.78291932,0.00013497,2]
[400558316,1767718238949,-990.78291932,0.00013497,2]
[400558317,1767718238958,-990.78291932,0.00013497,2]
[400558318,1767718238967,-990.78291932,0.00013497,2]
[400558319,1767718238976,-990.78291932,0.00013497,2]
[400558320,1767718238986,-990.78291932,0.00013497,2]
[400558321,1767718238996,-1000000.0,0.00013498,2]
[400558322,1767718239005,-300.0,0.00013673,2]
[400558323,1767718239014,-500.0,0.00013698,2]
[400558324,1767718239024,-577.08,0.00013698,2]
[400558325,1767718239033,-466.89772029,0.00013698,2]
[400558326,1767718239042,-500.0,0.00013699,2]
[400558327,1767718239051,-500.0,0.00013699,2]
[400558328,1767718239060,-500.0,0.00013699,2]
[400558329,1767718239069,-500.0,0.00013699,2]
[400558330,1767718239079,-500.0,0.00013699,2]
[400558331,1767718239088,-500.0,0.00013699,2]
[400558332,1767718239097,-506.55124883,0.00013699,2]
[400558333,1767718239109,-17906.3209483,0.00013699,2]
[400558334,1767718239119,-1000.0,0.00013699,2]
[400558335,1767718239129,-1597.334441,0.00013699,2]
[400558336,1767718239138,-500.0,0.00013699,2]
[400558337,1767718239148,-500.0,0.00013699,2]
[400558338,1767718239158,-500.0,0.00013699,2]
[400558339,1767718239167,-500.2666594,0.00013699,2]
[400558340,1767718239177,-501.17135178,0.00013699,2]
[400558341,1767718239186,-500.74532212,0.00013699,2]
[400558342,1767718239195,-500.0,0.00013699,2]
[400558343,1767718239205,-500.84600982,0.00013699,2]
[400558344,1767718239214,-526.06901587,0.00013699,2]
[400558345,1767718239224,-500.0,0.00013699,2]
[400558346,1767718239233,-500.93963039,0.00013699,2]
[400558347,1767718239242,-500.0,0.00013699,2]
[400558348,1767718239252,-500.0,0.00013699,2]
[400558349,1767718239262,-504.37236451,0.00013699,2]
[400558350,1767718239272,-500.71714379,0.00013699,2]
[400558351,1767718239281,-500.0,0.00013699,2]
[400558352,1767718239290,-501.56829016,0.00013699,2]
[400558353,1767718239299,-500.68695717,0.00013699,2]
[400558354,1767718239308,-500.68900305,0.00013699,2]
[400558355,1767718239318,-500.70390691,0.00013699,2]
[400558356,1767718239327,-254.27500282,0.00013699,2]
[400558357,1767718239337,-500.0,0.00013699,2]
[400558358,1767718239347,-500.61401424,0.00013699,2]
[400558359,1767718239357,-634.09365022,0.00013699,2]
[400558360,1767718239366,-501.00450759,0.00013699,2]
[400558361,1767718239375,-502.04480355,0.00013699,2]
[400558362,1767718239384,-500.7233053,0.00013699,2]
[400558363,1767718239394,-500.76143899,0.00013699,2]
[400558364,1767718239403,-540.98419624,0.00013699,2]
[400558365,1767718239414,-343.49392703,0.00013699,2]
[400558366,1767718239423,-500.0,0.00013699,2]
[400558367,1767718239433,-500.0,0.00013699,2]
[400558368,1767718239445,-500.0,0.00013699,2]
[400558369,1767718239455,-500.0,0.00013699,2]
[400558370,1767718239464,-278.9208915,0.00013711,2]
[400558371,1767718239474,-222.9660494,0.00013711,2]
[400558372,1767718239484,-228.744786,0.00013732,2]
[400558373,1767718239493,-185.9472608,0.00013756,2]
[400558374,1767718239502,-1002.25371869,0.00013821,2]
[400558375,1767718239512,-500.0,0.00013821,2]
[400558376,1767718239522,-1000.0,0.00013821,2]
[400558377,1767718239532,-1002.10613281,0.00013821,2]
[400558378,1767718239542,-1000.0,0.00013821,2]
[400558379,1767718239551,-1000.0,0.00013821,2]
[400558380,1767718239561,-1788.74046295,0.00013825,2]
[400558381,1767718239571,-7838.77162275,0.0001386,2]
[400558382,1767718239582,-300.0,0.0001387,2]
[400558383,1767718239591,-300.0,0.0001387,2]
[400558384,1767718239602,-300.0,0.0001387,2]
[400558385,1767718239612,-300.0,0.0001387,2]
[400558386,1767718239622,-300.0,0.0001387,2]
[400558387,1767718239631,-300.0,0.0001387,2]
[400558388,1767718239641,-300.0,0.0001387,2]
[400558389,1767718239650,-300.0,0.0001387,2]
[400558390,1767718239660,-300.0,0.0001387,2]
[400558391,1767718239672,-300.0,0.0001387,2]
[400558392,1767718239682,-300.0,0.0001387,2]
[400558393,1767718239692,-300.0,0.0001387,2]
[400558394,1767718239702,-300.0,0.0001387,2]
[400558395,1767718239711,-300.0,0.0001387,2]
[400558396,1767718239722,-1788.74046295,0.00014156,2]
[400558397,1767718239731,-179.99537893,0.00014175,2]
[400558398,1767718239741,-600.0,0.00014221,2]
[400558399,1767718239751,-1000.0,0.00014247,2]
[400558400,1767718239760,-1001.57471188,0.00014247,2]
[400558401,1767718239769,-500.0,0.00014247,2]
[400558402,1767718239780,-443.89072638,0.00014247,2]
[400558403,1767718239790,-501.0386878,0.00014247,2]
[400558404,1767718239800,-1000.0,0.00014247,2]
[400558405,1767718239812,-1000.0,0.00014247,2]
[400558406,1767718239823,-500.81877837,0.00014247,2]
[400558407,1767718239835,-1000.0,0.00014247,2]
[400558408,1767718239845,-500.54517436,0.00014247,2]
[400558409,1767718239855,-500.84667986,0.00014247,2]
[400558410,1767718239865,-1000.0,0.00014247,2]
[400558411,1767718239874,-1500.0,0.00014368,2]
[400558412,1767718239884,-1500.0,0.00014368,2]
[400558413,1767718239893,-1500.0,0.00014368,2]
[400558415,1767718239907,-1788.74046295,0.00014486,2]
[400558418,1767718240125,-420.0,0.00014551,2]
[400558420,1767718240136,-248.92520972,0.00014609,2]
[400558421,1767718240146,-234.83974338,0.00014692,2]
[400558422,1767718240155,-1266.4970871,0.00014698,2]
[400558424,1767718240167,-900.0,0.00014768,2]
[400558425,1767718240177,-1171.78607556,0.00014795,2]
[400558427,1767718240187,-692.18736728,0.00014795,2]
[400558429,1767718240197,-1500.0,0.00014795,2]
[400558431,1767718240206,-1500.0,0.00014795,2]
[400558432,1767718240215,-533.7772006,0.00014795,2]
[400558433,1767718240225,-1788.74046295,0.00014816,2]
[400558434,1767718240235,-100000.0,0.00014882,2]
[400558435,1767718240245,-541.38457236,0.00014916,2]
[400558436,1767718240254,-2056.89714871,0.00014916,2]
[400558437,1767718240263,-1387.16845353,0.00014916,2]
[400558438,1767718240273,-1041.66666667,0.00014976,2]
[400558439,1767718240283,-17000.0,0.00015,2]
[400558440,1767718240294,-1000.0,0.00015,2]
[400558441,1767718240305,-500.0,0.0001522,2]
[400558442,1767718240315,-500.0,0.00015221,2]
[400558443,1767718240325,-500.0,0.00015221,2]
[400558444,1767718240334,-589.37550664,0.00015316,2]
[400558445,1767718240351,-2000.0,0.00015342,2]
[400558446,1767718240364,-1006.10461326,0.00015342,2]
[400558447,1767718240374,-475.0,0.00015577,2]
[400558448,1767718240388,-600.0,0.0001589,2]
[400558450,1767718240398,-2500.0,0.0001589,2]
[400558451,1767718240410,-7838.0,0.00015939,2]
[400558453,1767718240420,-587.0,0.00015953,2]
[400558455,1767718240430,-185.9472608,0.00016005,2]
[400558456,1767718240439,-305.8605609,0.00016111,4]
[400558457,1767718240449,-3000.0,0.00016438,2]
[400558458,1767718240460,-286.89685188,0.00016609,2]
[400558459,1767718240471,-1418.71659724,0.00016986,2]
[400558460,1767718240481,-720.0,0.00017479,2]
[400558461,1767718240491,-537.0,0.0001749,2]
[400558462,1767718240500,-389.96303144,0.00017531,7]
[400558463,1767718240510,-500.0,0.0001774,2]
[400558464,1767718240520,-2145.53566777,0.00017864,2]
[400558465,1767718240530,-163.06318377,0.00017894,2]
[400558466,1767718240540,-2145.0,0.00018204,2]
[400558467,1767718240549,-1365.0,0.00018204,2]
[400558468,1767718240559,-628.0,0.00018204,2]
[400558469,1767718240569,-714.0,0.00018204,2]
[400558470,1767718240579,-194.752,0.00018204,2]
[400558471,1767718240588,-150.275,0.00018204,2]
[400558472,1767718240598,-150.994,0.00018204,2]
[400558473,1767718240608,-185.9472608,0.00018255,2]
[400558474,1767718240618,-324.86849404,0.00018609,2]
[400558475,1767718240627,-303.40956499,0.000189,2]
[400558476,1767718240637,-303.40348932,0.000189,2]
[400558477,1767718240647,-485.3585315,0.00018951,9]
[400558478,1767718240659,-238.0,0.00019068,3]
[400558479,1767718240669,-303.40956499,0.00019089,2]
[400558480,1767718240683,-303.40348932,0.00019089,2]
[400558481,1767718240693,-900.0,0.00019178,2]
[400558482,1767718240702,-245.12,0.000192,2]
[400558483,1767718240712,-288.04,0.000192,2]
[400558484,1767718240721,-2817.21,0.000192,2]
[400558485,1767718240731,-167.75,0.000192,2]
[400558486,1767718240740,-26028.52,0.000192,2]
[400558488,1767718240750,-864.0,0.00019226,2]
[400558489,1767718240759,-303.40956499,0.00019278,2]
[400558490,1767718240768,-303.40348932,0.00019278,2]
[400558491,1767718240778,-2000.0,0.00019432,3]
[400558492,1767718240788,-2000.0,0.00019441,3]
[400558493,1767718240796,-2000.0,0.00019449,3]
[400558494,1767718240807,-885.4942762,0.00019455,2]
[400558495,1767718240821,-2000.0,0.00019458,3]
[400558496,1767718240830,-303.40956499,0.00019467,2]
[400558497,1767718240840,-2000.0,0.00019467,3]
[400558498,1767718240850,-303.40348932,0.00019467,2]
[400558499,1767718240862,-303.40956499,0.00019656,2]
[400558500,1767718240872,-303.40348932,0.00019656,2]
[400558501,1767718240881,-648.93473211,0.00019726,2]
[400558502,1767718240891,-455.11434748,0.00019845,4]
[400558503,1767718240901,-455.10523398,0.00019845,4]
[400558504,1767718240913,-563.21667357,0.0002,2]
[400558505,1767718240922,-7097.0,0.0002,2]
[400558506,1767718240932,-6963.0,0.0002,3]
[400558507,1767718240942,-8300.0,0.0002,2]
[400558508,1767718240951,-151.69415061,0.0002,2]
[400558509,1767718240962,-1644.63,0.0002,2]
[400558510,1767718240972,-2000.0,0.00020025,7]
[400558511,1767718240981,-455.11434748,0.00020034,4]
[400558512,1767718240992,-212.1676775,0.00020034,4]
[400558513,1767718241001,-455.11434748,0.00020223,4]
[400558514,1767718241010,-5727.325185,0.00020311,2]
[400558515,1767718241020,-590.84023813,0.00020371,12]
[400558516,1767718241030,-455.11434748,0.00020412,4]
[400558517,1767718241042,-1597.334441,0.00020548,2]
[400558518,1767718241053,-455.11434748,0.00020601,4]
[400558519,1767718241062,-362.8401362,0.00020609,2]
[400558520,1767718241072,-184.0,0.00020712,3]
[400558521,1767718241082,-281.0,0.00021,2]
[400558522,1767718241092,-2000.0,0.00021024,7]
[400558523,1767718241101,-1000.0,0.00021149,10]
[400558524,1767718241111,-2145.0,0.00021204,2]
[400558525,1767718241121,-1365.0,0.00021204,2]
[400558526,1767718241130,-628.0,0.00021204,2]
[400558527,1767718241140,-714.0,0.00021204,2]
[400558528,1767718241150,-178.0,0.00021204,2]
[400558529,1767718241161,-168.0,0.00021528,2]
[400558530,1767718241171,-168.0,0.00021568,2]
[400558531,1767718241181,-168.0,0.00021609,2]
[400558532,1767718241190,-168.0,0.00021672,2]
[400558533,1767718241200,-151.0,0.00021756,2]
[400558534,1767718241210,-705.52219192,0.0002179,15]
[400558535,1767718241220,-500.0,0.00021944,2]
[400558536,1767718241230,-739.3,0.00022,2]
[400558537,1767718241240,-3322.54,0.00022,7]
[400558538,1767718241249,-184.0,0.00022,2]
[400558539,1767718241259,-245.12,0.00022,7]
[400558540,1767718241268,-288.04,0.00022,7]
[400558541,1767718241277,-2817.21,0.00022,14]
[400558542,1767718241287,-26028.52,0.00022,2]
[400558543,1767718241296,-2000.0,0.00022023,7]
[400558544,1767718241305,-168.0,0.00022094,2]
[400558545,1767718241315,-4827.45525248,0.0002226,2]
[400558546,1767718241325,-186.0,0.00022356,7]
[400558547,1767718241335,-1543.0,0.00022391,2]
[400558548,1767718241344,-300.0,0.00022466,2]
[400558549,1767718241353,-1543.0,0.00022474,2]
[400558550,1767718241363,-400.81177836,0.00022609,2]
[400558551,1767718241372,-168.0,0.00022689,2]
[400558552,1767718241382,-1543.0,0.00022704,2]
[400558553,1767718241391,-1543.0,0.00022719,2]
[400558554,1767718241401,-168.0,0.00022737,2]
[400558555,1767718241412,-168.0,0.00022929,2]
[400558556,1767718241422,-168.0,0.00022973,2]
[400558557,1767718241431,-450.0,0.00023014,2]
[400558558,1767718241441,-2000.0,0.00023022,7]
[400558559,1767718241450,-168.0,0.00023083,2]
[400558560,1767718241460,-2100.0,0.00023173,2]
[400558561,1767718241470,-1543.0,0.00023196,2]
[400558562,1767718241479,-2100.0,0.00023208,2]
[400558563,1767718241489,-828.71794708,0.0002321,17]
[400558564,1767718241498,-2100.0,0.00023244,2]
[400558565,1767718241508,-1000.0,0.00023264,10]
[400558566,1767718241518,-244.0,0.00023264,10]
[400558567,1767718241527,-2100.0,0.00023268,2]
[400558568,1767718241537,-1543.0,0.00023281,2]
[400558569,1767718241546,-168.0,0.00023291,2]
[400558570,1767718241555,-168.0,0.00023312,2]
[400558571,1767718241565,-500.0,0.00023314,2]
[400558572,1767718241575,-2100.0,0.00023361,2]
[400558573,1767718241585,-2100.0,0.00023362,2]
[400558574,1767718241594,-1543.0,0.00023374,2]
[400558575,1767718241604,-500.0,0.00023401,2]
[400558576,1767718241614,-500.0,0.00023458,2]
[400558577,1767718241624,-587.58501506,0.00023463,2]
[400558578,1767718241633,-168.0,0.00023467,2]
[400558579,1767718241642,-2100.0,0.00023516,2]
[400558580,1767718241652,-151.0,0.00023529,2]
[400558581,1767718241663,-609.47726757,0.00023541,2]
[400558582,1767718241672,-500.0,0.00023546,2]
[400558583,1767718241681,-600.0,0.00023562,2]
[400558584,1767718241691,-1543.0,0.00023569,2]
[400558585,1767718241701,-500.0,0.0002358,2]
[400558586,1767718241711,-168.0,0.00023589,2]
[400558587,1767718241720,-2100.0,0.000236,2]
[400558588,1767718241730,-168.0,0.00023618,2]
[400558589,1767718241740,-500.0,0.00023641,2]